[Event "*** Titled Tuesday Blitz"]
[Site "Chess.com"]
[Date "2019.10.01"]
[Round "2"]
[White "hansen"]
[Black "Mikhail_Golubev"]
[Result "1-0"]
[WhiteElo "2789"]
[BlackElo "2490"]
[TimeControl "180+2"]
[EndTime "13:21:42 PDT"]
[Termination "hansen won on time"]

1. e4 {[%clk 0:03:01.9]} 1... c5 {[%clk 0:03:00.5]} 2. Nf3 {[%clk 0:03:03.2]}
2... d6 {[%clk 0:03:01.6]} 3. d4 {[%clk 0:03:04.4]} 3... Nf6 {[%clk 0:03:02.6]}
4. Nc3 {[%clk 0:03:05.4]} 4... cxd4 {[%clk 0:03:03.5]} 5. Nxd4 {[%clk
0:03:07.3]} 5... g6 {[%clk 0:03:04.6]} 6. Be3 {[%clk 0:02:58.4]} 6... Bg7 {[%clk
0:03:05.5]} 7. f3 {[%clk 0:02:59.3]} 7... O-O {[%clk 0:03:06.5]} 8. Qd2 {[%clk
0:03:00.7]} 8... Nc6 {[%clk 0:03:07.7]} 9. O-O-O {[%clk 0:03:02]} 9... d5 {[%clk
0:03:07.8]} 10. Qe1 {[%clk 0:02:57]} 10... e5 {[%clk 0:03:07.7]} 11. Nxc6 {[%clk
0:02:52.1]} 11... bxc6 {[%clk 0:03:08.7]} 12. exd5 {[%clk 0:02:53.7]} 12... Nxd5
{[%clk 0:03:09.7]} 13. Bc4 {[%clk 0:02:54.4]} 13... Be6 {[%clk 0:03:10.1]} 14.
Bb3 {[%clk 0:02:46.6]} 14... Qc7 {[%clk 0:02:48.6]} 15. h4 {[%clk 0:02:46]}
15... Nxe3 {[%clk 0:02:28.2]} 16. Qxe3 {[%clk 0:02:42.8]} 16... Bxb3 {[%clk
0:02:26.9]} 17. axb3 {[%clk 0:02:36.4]} 17... f5 {[%clk 0:02:27.4]} 18. h5
{[%clk 0:02:36.6]} 18... Rad8 {[%clk 0:02:15.6]} 19. hxg6 {[%clk 0:02:35.3]}
19... hxg6 {[%clk 0:02:16.5]} 20. Qc5 {[%clk 0:02:36.8]} 20... Rd4 {[%clk
0:01:46.7]} 21. Rxd4 {[%clk 0:02:23.5]} 21... exd4 {[%clk 0:01:46.8]} 22. Nd5
{[%clk 0:02:25]} 22... Qd7 {[%clk 0:00:33.1]} 23. Ne7+ {[%clk 0:02:25.3]} 23...
Kf7 {[%clk 0:00:33.4]} 24. Nxc6 {[%clk 0:02:26.8]} 24... Re8 {[%clk 0:00:14.3]}
25. b4 {[%clk 0:02:22.3]} 25... d3 {[%clk 0:00:09.9]} 26. Qc4+ {[%clk
0:02:23.2]} 26... Re6 {[%clk 0:00:10.9]} 27. b5 {[%clk 0:02:03.8]} 27... Bh6+
{[%clk 0:00:11.6]} 28. Kb1 {[%clk 0:02:03.3]} 28... d2 {[%clk 0:00:10.8]} 29.
Ne5+ {[%clk 0:01:55.9]} 29... Ke7 {[%clk 0:00:05.3]} 30. Nd3 {[%clk 0:01:22]}
30... Re1+ {[%clk 0:00:05]} 31. Rxe1+ {[%clk 0:01:16.7]} 31... dxe1=Q+ {[%clk
0:00:05.3]} 32. Nxe1 {[%clk 0:01:18.6]} 32... Qd1+ {[%clk 0:00:05.9]} 33. Ka2
{[%clk 0:01:20.5]} 33... Qxe1 {[%clk 0:00:07]} 34. Qc5+ {[%clk 0:01:21.7]} 34...
Kd7 {[%clk 0:00:04.8]} 35. Qxa7+ {[%clk 0:01:22]} 35... Kd6 {[%clk 0:00:05.6]}
36. Qd4+ {[%clk 0:01:22.6]} 36... Kc7 {[%clk 0:00:05.2]} 37. Qc5+ {[%clk
0:01:21.4]} 37... Kb8 {[%clk 0:00:04.4]} 38. Qb6+ {[%clk 0:01:21.5]} 38... Ka8
{[%clk 0:00:04.3]} 39. c4 {[%clk 0:01:19.6]} 1-0

[Event "*** Titled Tuesday Blitz"]
[Site "Chess.com"]
[Date "2019.10.01"]
[Round "2"]
[White "Sjakkerntobi"]
[Black "DanielNaroditsky"]
[Result "0-1"]
[WhiteElo "2038"]
[BlackElo "3018"]
[TimeControl "180+2"]
[EndTime "13:21:44 PDT"]
[Termination "DanielNaroditsky won by resignation"]

1. e4 {[%clk 0:03:01.9]} 1... g6 {[%clk 0:03:00.9]} 2. Nf3 {[%clk 0:03:02]} 2...
Bg7 {[%clk 0:03:02.8]} 3. d4 {[%clk 0:03:03.1]} 3... d6 {[%clk 0:03:04.1]} 4.
Nc3 {[%clk 0:03:03.9]} 4... Nf6 {[%clk 0:03:05.7]} 5. h3 {[%clk 0:03:05.5]} 5...
O-O {[%clk 0:03:07]} 6. Be2 {[%clk 0:03:06.9]} 6... Nc6 {[%clk 0:03:08.5]} 7.
O-O {[%clk 0:03:07.7]} 7... e5 {[%clk 0:03:10]} 8. dxe5 {[%clk 0:03:09.2]} 8...
dxe5 {[%clk 0:03:11.3]} 9. Qxd8 {[%clk 0:03:09.4]} 9... Rxd8 {[%clk 0:03:13.2]}
10. Bg5 {[%clk 0:03:10.9]} 10... Be6 {[%clk 0:03:14.7]} 11. Rad1 {[%clk
0:03:09.8]} 11... h6 {[%clk 0:03:15.1]} 12. Bxf6 {[%clk 0:03:05.5]} 12... Bxf6
{[%clk 0:03:17]} 13. Nd5 {[%clk 0:03:06.9]} 13... Bxd5 {[%clk 0:03:16]} 14. exd5
{[%clk 0:03:08.8]} 14... Ne7 {[%clk 0:03:13.6]} 15. Bc4 {[%clk 0:03:01]} 15...
Nf5 {[%clk 0:03:10]} 16. Rfe1 {[%clk 0:02:56.7]} 16... Nd6 {[%clk 0:03:10.9]}
17. Bb3 {[%clk 0:02:54.8]} 17... e4 {[%clk 0:03:12.4]} 18. Nd4 {[%clk
0:02:55.1]} 18... Re8 {[%clk 0:03:09.9]} 19. c4 {[%clk 0:02:54.8]} 19... b6
{[%clk 0:03:11.4]} 20. Ba4 {[%clk 0:02:43]} 20... Re5 {[%clk 0:03:12.4]} 21. Nc6
{[%clk 0:02:40.5]} 21... Rf5 {[%clk 0:03:13.1]} 22. Bb3 {[%clk 0:02:21.8]} 22...
Re8 {[%clk 0:03:11.6]} 23. Nd4 {[%clk 0:02:20.6]} 23... Bxd4 {[%clk 0:03:05.8]}
24. Rxd4 {[%clk 0:02:22.5]} 24... Rfe5 {[%clk 0:03:05.6]} 25. Bc2 {[%clk
0:02:10.6]} 25... Kg7 {[%clk 0:02:45.5]} 26. b4 {[%clk 0:02:09.8]} 26... f5
{[%clk 0:02:45.4]} 27. Ba4 {[%clk 0:02:03.2]} 27... Rd8 {[%clk 0:02:44.8]} 28.
Red1 {[%clk 0:02:00.3]} 28... f4 {[%clk 0:02:43.6]} 29. c5 {[%clk 0:01:59.6]}
29... Nf5 {[%clk 0:02:44.8]} 30. R4d2 {[%clk 0:01:56.1]} 30... e3 {[%clk
0:02:45.8]} 31. fxe3 {[%clk 0:01:58]} 31... Nxe3 {[%clk 0:02:46.3]} 32. Rc1
{[%clk 0:01:51.2]} 32... Rexd5 {[%clk 0:02:41.8]} 33. Rxd5 {[%clk 0:01:49.2]}
33... Rxd5 {[%clk 0:02:40]} 34. cxb6 {[%clk 0:01:50.5]} 34... cxb6 {[%clk
0:02:41.9]} 35. Kf2 {[%clk 0:01:12.1]} 35... Rd2+ {[%clk 0:02:39.7]} 36. Kf3
{[%clk 0:01:13.2]} 36... Rxa2 {[%clk 0:02:41.3]} 37. Bb3 {[%clk 0:01:07.9]}
37... Rb2 {[%clk 0:02:42.7]} 38. Rc7+ {[%clk 0:01:08.3]} 38... Kf6 {[%clk
0:02:43.5]} 39. Rc6+ {[%clk 0:01:06.7]} 39... Ke5 {[%clk 0:02:44.4]} 40. Bf7
{[%clk 0:01:06.9]} 40... Nxg2 {[%clk 0:02:44.5]} 41. Rc7 {[%clk 0:00:49.5]}
41... Nh4+ {[%clk 0:02:45.3]} 42. Kg4 {[%clk 0:00:50.9]} 42... g5 {[%clk
0:02:46.4]} 43. Rxa7 {[%clk 0:00:47.6]} 43... f3 {[%clk 0:02:45.1]} 44. Bc4
{[%clk 0:00:44.9]} 44... Rxb4 {[%clk 0:02:46.1]} 45. Re7+ {[%clk 0:00:45.5]}
45... Kd6 {[%clk 0:02:44.7]} 46. Re6+ {[%clk 0:00:46.1]} 46... Kc5 {[%clk
0:02:46]} 47. Rxh6 {[%clk 0:00:43.1]} 47... Rxc4+ {[%clk 0:02:45.8]} 48. Kxg5
{[%clk 0:00:44.7]} 48... f2 {[%clk 0:02:47.4]} 49. Rf6 {[%clk 0:00:45.3]} 49...
b5 {[%clk 0:02:32]} 50. Rxf2 {[%clk 0:00:45.1]} 50... b4 {[%clk 0:02:33.6]} 51.
Kh5 {[%clk 0:00:37.3]} 51... b3 {[%clk 0:02:34.2]} 52. Rb2 {[%clk 0:00:37.3]}
52... Kb4 {[%clk 0:02:35.3]} 53. Rf2 {[%clk 0:00:32.4]} 53... Ka3 {[%clk
0:02:36.2]} 54. Rf8 {[%clk 0:00:32.5]} 54... b2 {[%clk 0:02:37.7]} 55. Ra8+
{[%clk 0:00:33.7]} 55... Ra4 {[%clk 0:02:39.4]} 56. Rb8 {[%clk 0:00:32.8]} 56...
Rb4 {[%clk 0:02:40.6]} 57. Ra8+ {[%clk 0:00:34.3]} 57... Kb3 {[%clk 0:02:42.1]}
58. Rg8 {[%clk 0:00:26]} 58... b1=Q {[%clk 0:02:43]} 59. Rg3+ {[%clk 0:00:27.9]}
59... Kc2 {[%clk 0:02:43.8]} 60. Kh6 {[%clk 0:00:23.6]} 60... Qc1+ {[%clk
0:02:44.3]} 61. Kh7 {[%clk 0:00:24.5]} 61... Qf4 {[%clk 0:02:45.4]} 62. Kh8
{[%clk 0:00:18.3]} 62... Qxg3 {[%clk 0:02:42.4]} 0-1

[Event "*** Titled Tuesday Blitz"]
[Site "Chess.com"]
[Date "2019.10.01"]
[Round "2"]
[White "tteshan"]
[Black "GelmanAlexander"]
[Result "0-1"]
[WhiteElo "2247"]
[BlackElo "2500"]
[TimeControl "180+2"]
[EndTime "13:21:44 PDT"]
[Termination "GelmanAlexander won by resignation"]

1. e4 {[%clk 0:03:01.9]} 1... d5 {[%clk 0:03:00.2]} 2. exd5 {[%clk 0:03:02.3]}
2... Qxd5 {[%clk 0:03:00.8]} 3. Nc3 {[%clk 0:03:03.8]} 3... Qa5 {[%clk
0:03:01.8]} 4. d4 {[%clk 0:03:05.2]} 4... Nf6 {[%clk 0:03:02.6]} 5. Bc4 {[%clk
0:03:04.9]} 5... Nc6 {[%clk 0:03:02.7]} 6. Nf3 {[%clk 0:03:05.8]} 6... Bg4
{[%clk 0:03:03.8]} 7. Be3 {[%clk 0:02:40.4]} 7... O-O-O {[%clk 0:03:01.9]} 8.
Bxf7 {[%clk 0:02:29.8]} 8... Nxd4 {[%clk 0:01:59.9]} 9. Bxd4 {[%clk 0:02:25.8]}
9... e5 {[%clk 0:02:01]} 10. Qe2 {[%clk 0:01:35.3]} 10... exd4 {[%clk
0:01:48.7]} 11. Be6+ {[%clk 0:01:35.3]} 11... Kb8 {[%clk 0:01:21.1]} 12. Bxg4
{[%clk 0:01:35]} 12... dxc3 {[%clk 0:01:14.4]} 13. b4 {[%clk 0:01:31.9]} 13...
Bxb4 {[%clk 0:01:08]} 14. Be6 {[%clk 0:01:18.6]} 14... Rhe8 {[%clk 0:01:07.8]}
15. O-O {[%clk 0:01:20.2]} 15... Rd6 {[%clk 0:01:03]} 16. Rfe1 {[%clk 0:01:21]}
16... Rdxe6 {[%clk 0:01:01.7]} 17. Qxe6 {[%clk 0:01:22.9]} 17... Rxe6 {[%clk
0:01:02.8]} 18. Rxe6 {[%clk 0:01:24.8]} 18... a6 {[%clk 0:00:55.3]} 19. h3
{[%clk 0:01:21]} 19... Ba3 {[%clk 0:00:49.6]} 20. Re5 {[%clk 0:01:19.7]} 20...
Qa4 {[%clk 0:00:47.6]} 21. Re2 {[%clk 0:01:11.4]} 21... Bb2 {[%clk 0:00:48]} 22.
Rd1 {[%clk 0:01:13.3]} 22... Qxa2 {[%clk 0:00:48.3]} 23. Rd8+ {[%clk 0:01:14.5]}
23... Ka7 {[%clk 0:00:49.4]} 24. Re7 {[%clk 0:01:11.4]} 24... Qb1+ {[%clk
0:00:41.5]} 25. Kh2 {[%clk 0:01:11.7]} 25... Qxc2 {[%clk 0:00:42.9]} 26. Rxc7
{[%clk 0:01:13.1]} 26... Qxf2 {[%clk 0:00:38.4]} 27. Rdc8 {[%clk 0:01:06.5]}
27... Nd5 {[%clk 0:00:32]} 28. Rf7 {[%clk 0:00:49.2]} 28... Ne3 {[%clk
0:00:26.2]} 29. Rxg7 {[%clk 0:00:50.3]} 29... Nf1+ {[%clk 0:00:20.6]} 30. Kh1
{[%clk 0:00:48.5]} 30... Ng3+ {[%clk 0:00:18.4]} 31. Kh2 {[%clk 0:00:49]} 31...
c2 {[%clk 0:00:16.9]} 32. Rxg3 {[%clk 0:00:44.3]} 32... c1=Q {[%clk 0:00:16.4]}
33. Rxc1 {[%clk 0:00:46.2]} 33... Bxc1 {[%clk 0:00:18.3]} 34. Rg4 {[%clk
0:00:46.7]} 34... Be3 {[%clk 0:00:19.2]} 35. Re4 {[%clk 0:00:47.4]} 35... a5
{[%clk 0:00:19.8]} 36. Ne5 {[%clk 0:00:47.2]} 36... Bf4+ {[%clk 0:00:20.6]} 0-1

[Event "*** Titled Tuesday Blitz"]
[Site "Chess.com"]
[Date "2019.10.01"]
[Round "2"]
[White "TrimitziosP7"]
[Black "parmupill123"]
[Result "1-0"]
[WhiteElo "2768"]
[BlackElo "2513"]
[TimeControl "180+2"]
[EndTime "13:21:48 PDT"]
[Termination "TrimitziosP7 won by checkmate"]

1. Nf3 {[%clk 0:03:01.9]} 1... e6 {[%clk 0:02:55.9]} 2. b3 {[%clk 0:03:00.4]}
2... b6 {[%clk 0:02:54.2]} 3. Bb2 {[%clk 0:03:01.6]} 3... Bb7 {[%clk 0:02:55.8]}
4. c4 {[%clk 0:03:02.9]} 4... Nf6 {[%clk 0:02:56.4]} 5. g3 {[%clk 0:03:04]} 5...
Be7 {[%clk 0:02:56.9]} 6. Bg2 {[%clk 0:03:05.2]} 6... O-O {[%clk 0:02:58.5]} 7.
O-O {[%clk 0:03:06.4]} 7... d5 {[%clk 0:02:58.5]} 8. d3 {[%clk 0:03:06.6]} 8...
c5 {[%clk 0:02:59]} 9. e3 {[%clk 0:03:07.8]} 9... Nc6 {[%clk 0:02:57.4]} 10. Qe2
{[%clk 0:03:09]} 10... Qc7 {[%clk 0:02:53.3]} 11. Nc3 {[%clk 0:03:09.7]} 11...
Rad8 {[%clk 0:02:52.6]} 12. Rfd1 {[%clk 0:03:10.6]} 12... Rd7 {[%clk 0:02:45.7]}
13. cxd5 {[%clk 0:03:05.8]} 13... Nxd5 {[%clk 0:02:44.7]} 14. Nxd5 {[%clk
0:02:30.1]} 14... Rxd5 {[%clk 0:02:42.1]} 15. d4 {[%clk 0:02:28.8]} 15... Rdd8
{[%clk 0:02:12.4]} 16. Rac1 {[%clk 0:02:26]} 16... Qb8 {[%clk 0:02:12.6]} 17.
dxc5 {[%clk 0:02:22.9]} 17... Bxc5 {[%clk 0:02:14.5]} 18. Ng5 {[%clk 0:02:19.7]}
18... h6 {[%clk 0:01:36.1]} 19. Ne4 {[%clk 0:02:14.2]} 19... Be7 {[%clk
0:01:33.3]} 20. Qg4 {[%clk 0:01:39.7]} 20... Ne5 {[%clk 0:01:23]} 21. Qf4 {[%clk
0:01:34]} 21... f6 {[%clk 0:00:44.7]} 22. Bxe5 {[%clk 0:01:07.6]} 22... fxe5
{[%clk 0:00:46.6]} 23. Qg4 {[%clk 0:01:06.1]} 23... Rf5 {[%clk 0:00:43.1]} 24.
Qg6 {[%clk 0:00:56.8]} 24... Bd5 {[%clk 0:00:30.4]} 25. Rxd5 {[%clk 0:00:52.6]}
25... exd5 {[%clk 0:00:29]} 26. Qxf5 {[%clk 0:00:53.2]} 26... dxe4 {[%clk
0:00:30]} 27. Bxe4 {[%clk 0:00:55.1]} 27... Bf6 {[%clk 0:00:19.7]} 28. Rc6
{[%clk 0:00:42.2]} 28... Rd1+ {[%clk 0:00:12.8]} 29. Kg2 {[%clk 0:00:41.1]}
29... Qf8 {[%clk 0:00:14.4]} 30. Qh7+ {[%clk 0:00:33]} 30... Kf7 {[%clk
0:00:15.2]} 31. Rc7+ {[%clk 0:00:33.2]} 31... Ke6 {[%clk 0:00:16.4]} 32. Qf5+
{[%clk 0:00:32.8]} 32... Kd6 {[%clk 0:00:17.1]} 33. Qd7# {[%clk 0:00:34]} 1-0

[Event "*** Titled Tuesday Blitz"]
[Site "Chess.com"]
[Date "2019.10.01"]
[Round "2"]
[White "I-Mesquita"]
[Black "mortngabriel"]
[Result "1-0"]
[WhiteElo "2639"]
[BlackElo "2324"]
[TimeControl "180+2"]
[EndTime "13:21:50 PDT"]
[Termination "I-Mesquita won on time"]

1. e4 {[%clk 0:03:01.4]} 1... c5 {[%clk 0:01:59.1]} 2. Nc3 {[%clk 0:02:53.9]}
2... Nc6 {[%clk 0:01:59.4]} 3. Nf3 {[%clk 0:02:52.8]} 3... g6 {[%clk 0:02:00]}
4. Bb5 {[%clk 0:02:47]} 4... Bg7 {[%clk 0:02:01.2]} 5. O-O {[%clk 0:02:47.5]}
5... e5 {[%clk 0:01:58.8]} 6. a3 {[%clk 0:02:39.1]} 6... Nge7 {[%clk 0:01:46.2]}
7. b4 {[%clk 0:02:38.2]} 7... d6 {[%clk 0:01:47.8]} 8. d3 {[%clk 0:02:35.1]}
8... O-O {[%clk 0:01:47.3]} 9. Bc4 {[%clk 0:02:20.5]} 9... Nd4 {[%clk
0:01:13.2]} 10. h3 {[%clk 0:02:06.3]} 10... h6 {[%clk 0:00:56.8]} 11. Nxd4
{[%clk 0:01:55.5]} 11... cxd4 {[%clk 0:00:51.9]} 12. Ne2 {[%clk 0:01:53.3]}
12... d5 {[%clk 0:00:45.2]} 13. Bb3 {[%clk 0:01:53.8]} 13... dxe4 {[%clk
0:00:33.9]} 14. dxe4 {[%clk 0:01:54.8]} 14... Qd6 {[%clk 0:00:32]} 15. Bb2
{[%clk 0:01:20.6]} 15... Be6 {[%clk 0:00:31.5]} 16. c4 {[%clk 0:01:18.2]} 16...
b6 {[%clk 0:00:29.1]} 17. Rc1 {[%clk 0:01:13.2]} 17... Kh7 {[%clk 0:00:28.4]}
18. c5 {[%clk 0:01:09.2]} 18... bxc5 {[%clk 0:00:29]} 19. Rxc5 {[%clk
0:01:10.3]} 19... Rac8 {[%clk 0:00:29.2]} 20. Ra5 {[%clk 0:01:04]} 20... Rc7
{[%clk 0:00:29.8]} 21. Nc1 {[%clk 0:01:02.4]} 21... f5 {[%clk 0:00:23.9]} 22.
exf5 {[%clk 0:00:55.2]} 22... Bxf5 {[%clk 0:00:23.9]} 23. Nd3 {[%clk 0:00:53.1]}
23... e4 {[%clk 0:00:19.3]} 24. Nc5 {[%clk 0:00:53.2]} 24... h5 {[%clk
0:00:10.3]} 25. Ra6 {[%clk 0:00:50.8]} 25... Qe5 {[%clk 0:00:09.4]} 26. Re1
{[%clk 0:00:39.3]} 26... Nd5 {[%clk 0:00:09.1]} 27. Nd3 {[%clk 0:00:33.7]} 27...
Nc3 {[%clk 0:00:04.2]} 28. Bxc3 {[%clk 0:00:33.7]} 1-0

[Event "*** Titled Tuesday Blitz"]
[Site "Chess.com"]
[Date "2019.10.01"]
[Round "2"]
[White "NemtsevIgor"]
[Black "Blackmind96"]
[Result "0-1"]
[WhiteElo "2314"]
[BlackElo "2677"]
[TimeControl "180+2"]
[EndTime "13:21:53 PDT"]
[Termination "Blackmind96 won by resignation"]

1. d4 {[%clk 0:03:01.9]} 1... Nf6 {[%clk 0:03:00.3]} 2. Bf4 {[%clk 0:03:01.7]}
2... g6 {[%clk 0:03:00.4]} 3. e3 {[%clk 0:03:02]} 3... Bg7 {[%clk 0:03:01.8]} 4.
Nf3 {[%clk 0:03:02.7]} 4... O-O {[%clk 0:03:03.3]} 5. Be2 {[%clk 0:03:03.9]}
5... d6 {[%clk 0:03:05.2]} 6. O-O {[%clk 0:03:03.6]} 6... c5 {[%clk 0:03:05.9]}
7. c3 {[%clk 0:03:04.2]} 7... cxd4 {[%clk 0:03:06.2]} 8. cxd4 {[%clk 0:02:52.9]}
8... Nc6 {[%clk 0:03:08.1]} 9. Nc3 {[%clk 0:02:53.3]} 9... b6 {[%clk 0:02:59]}
10. h3 {[%clk 0:02:50.6]} 10... Bb7 {[%clk 0:02:59.8]} 11. Qd2 {[%clk
0:02:26.1]} 11... Rc8 {[%clk 0:02:58.3]} 12. Rfc1 {[%clk 0:02:25.8]} 12... a6
{[%clk 0:02:59.5]} 13. a3 {[%clk 0:02:19.8]} 13... b5 {[%clk 0:03:00.8]} 14. b4
{[%clk 0:02:20]} 14... Nd7 {[%clk 0:02:59.7]} 15. Bg5 {[%clk 0:02:01]} 15... Nb6
{[%clk 0:02:59.3]} 16. e4 {[%clk 0:01:52.4]} 16... d5 {[%clk 0:02:53]} 17. e5
{[%clk 0:01:42.6]} 17... f6 {[%clk 0:02:50.5]} 18. Bh6 {[%clk 0:01:28.5]} 18...
fxe5 {[%clk 0:02:47]} 19. Bxg7 {[%clk 0:01:29.6]} 19... Kxg7 {[%clk 0:02:46.5]}
20. dxe5 {[%clk 0:01:30.2]} 20... e6 {[%clk 0:02:41.8]} 21. a4 {[%clk
0:01:23.3]} 21... Nc4 {[%clk 0:02:30.7]} 22. Bxc4 {[%clk 0:01:21.7]} 22... bxc4
{[%clk 0:02:31.5]} 23. b5 {[%clk 0:01:20.9]} 23... Na5 {[%clk 0:02:32.6]} 24.
Nd4 {[%clk 0:01:15]} 24... Qe7 {[%clk 0:02:33.4]} 25. bxa6 {[%clk 0:01:08.2]}
25... Bxa6 {[%clk 0:02:33.5]} 26. Ncb5 {[%clk 0:01:09.5]} 26... Nc6 {[%clk
0:02:29.3]} 27. Nxc6 {[%clk 0:01:09.1]} 27... Rxc6 {[%clk 0:02:31.2]} 28. Nd4
{[%clk 0:01:10.2]} 28... Rb6 {[%clk 0:02:32.1]} 29. a5 {[%clk 0:01:09.1]} 29...
Rb7 {[%clk 0:02:31.6]} 30. Rab1 {[%clk 0:01:01.7]} 30... Rfb8 {[%clk 0:02:32.7]}
31. Rxb7 {[%clk 0:01:01.8]} 31... Rxb7 {[%clk 0:02:34.6]} 32. Qc2 {[%clk
0:00:54.7]} 32... Rb4 {[%clk 0:02:31.2]} 33. Rb1 {[%clk 0:00:53]} 33... Bc8
{[%clk 0:02:25.4]} 34. a6 {[%clk 0:00:41.9]} 34... Rxb1+ {[%clk 0:02:21.8]} 35.
Qxb1 {[%clk 0:00:42.6]} 35... Bxa6 {[%clk 0:02:23.3]} 36. Qb6 {[%clk 0:00:42]}
36... Bc8 {[%clk 0:02:24.6]} 37. Qc6 {[%clk 0:00:41]} 37... Qd7 {[%clk
0:02:24.5]} 38. Qc5 {[%clk 0:00:40.1]} 38... Bb7 {[%clk 0:02:23.3]} 39. f4
{[%clk 0:00:37.9]} 39... Kf7 {[%clk 0:02:17.9]} 40. Kh2 {[%clk 0:00:38.9]} 40...
Qc8 {[%clk 0:02:14.9]} 41. Qd6 {[%clk 0:00:37.5]} 41... c3 {[%clk 0:02:15.6]}
42. f5 {[%clk 0:00:31.6]} 42... gxf5 {[%clk 0:02:14.9]} 43. Nf3 {[%clk
0:00:32.8]} 43... h6 {[%clk 0:02:15]} 44. Nd4 {[%clk 0:00:33.3]} 44... Ba6
{[%clk 0:02:00.8]} 45. Nc6 {[%clk 0:00:32.7]} 45... Qe8 {[%clk 0:02:01.3]} 46.
Qc7+ {[%clk 0:00:31.7]} 46... Kf8 {[%clk 0:02:02.7]} 47. Qd6+ {[%clk 0:00:31.7]}
47... Kg7 {[%clk 0:02:04.1]} 48. Qc7+ {[%clk 0:00:33]} 48... Qf7 {[%clk
0:02:04.7]} 49. Qa5 {[%clk 0:00:28.5]} 49... c2 {[%clk 0:02:02.9]} 50. Qd2
{[%clk 0:00:29.2]} 50... Qc7 {[%clk 0:02:03.2]} 51. Nd4 {[%clk 0:00:28.6]} 51...
c1=Q {[%clk 0:02:02]} 52. Nxe6+ {[%clk 0:00:29.6]} 52... Kh7 {[%clk 0:02:01.8]}
53. Qf2 {[%clk 0:00:27.1]} 53... Qxe5+ {[%clk 0:02:01.4]} 0-1

[Event "*** Titled Tuesday Blitz"]
[Site "Chess.com"]
[Date "2019.10.01"]
[Round "2"]
[White "ChessNetwork"]
[Black "Bad4life"]
[Result "0-1"]
[WhiteElo "2679"]
[BlackElo "2360"]
[TimeControl "180+2"]
[EndTime "13:21:59 PDT"]
[Termination "Bad4life won on time"]

1. d4 {[%clk 0:03:01.6]} 1... d5 {[%clk 0:02:55.3]} 2. c4 {[%clk 0:03:01.5]}
2... e6 {[%clk 0:02:56.7]} 3. Nf3 {[%clk 0:03:01.8]} 3... Nf6 {[%clk 0:02:56.3]}
4. Nc3 {[%clk 0:03:01.3]} 4... Bb4 {[%clk 0:02:57.5]} 5. Qa4+ {[%clk 0:02:57.4]}
5... Nc6 {[%clk 0:02:58.3]} 6. a3 {[%clk 0:02:57.9]} 6... Bxc3+ {[%clk
0:02:54.8]} 7. bxc3 {[%clk 0:02:59.8]} 7... O-O {[%clk 0:02:54.1]} 8. Bg5 {[%clk
0:02:59.4]} 8... a6 {[%clk 0:02:51.2]} 9. e3 {[%clk 0:02:55]} 9... h6 {[%clk
0:02:51.3]} 10. Bxf6 {[%clk 0:02:32.6]} 10... Qxf6 {[%clk 0:02:51.7]} 11. Qc2
{[%clk 0:02:28.1]} 11... Re8 {[%clk 0:02:47.7]} 12. Be2 {[%clk 0:02:16.8]} 12...
dxc4 {[%clk 0:02:47.2]} 13. Bxc4 {[%clk 0:02:17.8]} 13... e5 {[%clk 0:02:48.2]}
14. O-O {[%clk 0:02:18.2]} 14... Bg4 {[%clk 0:02:45.3]} 15. Nd2 {[%clk
0:02:03.6]} 15... Rad8 {[%clk 0:02:41.2]} 16. Rfe1 {[%clk 0:02:00.8]} 16... exd4
{[%clk 0:02:33.1]} 17. cxd4 {[%clk 0:02:01.8]} 17... Kh8 {[%clk 0:02:07.3]} 18.
h3 {[%clk 0:02:00.8]} 18... Bf5 {[%clk 0:02:06.3]} 19. Bd3 {[%clk 0:01:59.6]}
19... Bxd3 {[%clk 0:02:01.5]} 20. Qxd3 {[%clk 0:02:01.5]} 20... Qh4 {[%clk
0:01:54.8]} 21. Nf3 {[%clk 0:01:59.6]} 21... Qh5 {[%clk 0:01:54.5]} 22. Qc4
{[%clk 0:01:55.3]} 22... Rd7 {[%clk 0:01:48.1]} 23. Rab1 {[%clk 0:01:50.9]}
23... f6 {[%clk 0:01:40.7]} 24. Rxb7 {[%clk 0:01:35.5]} 24... Na5 {[%clk
0:01:41.3]} 25. Qa4 {[%clk 0:01:36.6]} 25... Rxd4 {[%clk 0:01:17.7]} 26. Qxd4
{[%clk 0:01:01.8]} 26... Nxb7 {[%clk 0:01:18.8]} 27. Rc1 {[%clk 0:00:50]} 27...
Nd6 {[%clk 0:01:12.2]} 28. Qa7 {[%clk 0:00:34]} 28... Qa5 {[%clk 0:00:48.6]} 29.
Qxc7 {[%clk 0:00:25.6]} 29... Qxa3 {[%clk 0:00:48.4]} 30. Rb1 {[%clk 0:00:13]}
30... Nb5 {[%clk 0:00:37.5]} 31. Qf7 {[%clk 0:00:09.6]} 31... Re7 {[%clk
0:00:35]} 32. Qf8+ {[%clk 0:00:09.9]} 32... Kh7 {[%clk 0:00:36.5]} 33. Rd1
{[%clk 0:00:10.8]} 33... Rd7 {[%clk 0:00:36.4]} 0-1